[Event "Lidkoping Open 2019"]
[Site "Lidkoping"]
[Date "2019.08.25"]
[Round "5.2"]
[White "Ernst, Thomas"]
[Black "Ask, Josef"]
[Result "1-0"]
[ECO "B15"]
[WhiteElo "2329"]
[BlackElo "2136"]
[Annotator "ChessBase"]
[PlyCount "89"]
[EventDate "2019.08.19"]
[EventType "swiss"]
[EventCountry "SWE"]
[SourceTitle "playchess.com"]
[Source "ChessBase"]
[SourceQuality "1"]
[TimeControl "2700+10"]

1. e4 {[%emt 0:00:00]} c6 {[%emt 0:00:00]} 2. d4 {[%emt 0:00:15]} d5 {[%emt 0:00:05]} 3. Nd2 {[%emt 0:00:09]} dxe4 {[%emt 0:00:08]} 4. Nxe4 {[%emt 0:00:03]} Nf6 {[%emt 0:00:09]} 5. Nxf6+ {[%emt 0:00:03]} exf6 {[%emt 0:00:03]} 6. c3 {[%emt 0:00:05]} Bd6 {[%emt 0:00:09]} 7. Bd3 {[%emt 0:00:06]} O-O {[%emt 0:00:12]} 8. Qc2 {[%emt 0:00:06]} Re8+ {[%emt 0:00:09]} 9. Ne2 {[%emt 0:00:06]} f5 {[%emt 0:00:24]} 10. Bxf5 {[%emt 0:03:14]} Bxf5 {[%emt 0:00:12]} 11. Qxf5 {[%emt 0:00:03]} Nd7 {[%emt 0:00:19]} 12. Qf3 {[%emt 0:04:30]} Qc7 {[%emt 0:02:13]} 13. g3 {[%emt 0:05:04]} Re6 {[%emt 0:04:18]} 14. O-O {[%emt 0:00:11]} Rae8 {[%emt 0:00:22]} 15. Nf4 {[%emt 0:00:06]} Re4 {[%emt 0:00:54]} 16. Bd2 {[%emt 0:02:58]} Qa5 {[%emt 0:01:47]} 17. Nd3 {[%emt 0:02:18]} Qd5 {[%emt 0:02:22]} 18. Qd1 {[%emt 0:04:58]} Qf5 {[%emt 0:01:47]} 19. Re1 {[%emt 0:02:21]} Nf6 {[%emt 0:03:02]} 20. Rxe4 {[%emt 0:03:58]} Qxe4 {[%emt 0:01:22]} 21. Bf4 {[%emt 0:01:29]} Bf8 {[%emt 0:01:20]} 22. Bg5 {[%emt 0:01:45]} Re6 {[%emt 0:02:13]} 23. Nf4 {[%emt 0:01:30]} Rd6 {[%emt 0:00:11]} 24. Qd3 {[%emt 0:01:44]} Qe8 {[%emt 0:00:47]} 25. Bxf6 {[%emt 0:00:40]} Rxf6 {[%emt 0:00:03]} 26. Qe3 {[%emt 0:00:08]} Qd7 {[%emt 0:00:29]} 27. Re1 {[%emt 0:00:14]} Qg4 {[%emt 0:01:03]} 28. Qe4 {[%emt 0:02:52]} h5 {[%emt 0:00:47]} 29. Nd3 {[%emt 0:01:05]} Qh3 {[%emt 0:00:54]} 30. Re3 {[%emt 0:00:36]} Bd6 {[%emt 0:00:43]} 31. Ne5 {[%emt 0:00:28]} Re6 {[%emt 0:01:26]} 32. Qf3 {[%emt 0:00:41]} Rf6 {[%emt 0:00:12]} 33. Qe2 {[%emt 0:00:26]} Qf5 {[%emt 0:01:01]} 34. Kg2 {[%emt 0:01:01]} h4 {[%emt 0:01:05]} 35. g4 {[%emt 0:00:19]} Qb1 {[%emt 0:02:28]} 36. a3 {[%emt 0:00:42]} Qa2 {[%emt 0:00:34]} 37. Nf3 {[%emt 0:01:20]} Qd5 {[%emt 0:03:35]} 38. c4 {[%emt 0:00:25]} h3+ {[%emt 0:00:36]} 39. Kxh3 {[%emt 0:00:17]} Rh6+ {[%emt 0:00:05]} 40. Kg2 {[%emt 0:00:04]} Qa5 {[%emt 0:00:33]} 41. Re8+ {[%emt 0:00:37]} Kh7 {[%emt 0:00:19]} 42. c5 {[%emt 0:00:24]} Bc7 {[%emt 0:00:14]} 43. Ng5+ {[%emt 0:01:12]} Kg6 {[%emt 0:00:04]} 44. h4 {[%emt 0:00:44]} Rxh4 {[%emt 0:11:41]} 45. Qe4+ {[%emt 0:00:18]} 1-0

[Event "Lidkoping Open 2019"]
[Site "Lidkoping"]
[Date "2019.08.25"]
[Round "5.3"]
[White "Mattsson, Michael"]
[Black "Svensson, Bengt"]
[Result "1/2-1/2"]
[ECO "B53"]
[WhiteElo "2011"]
[BlackElo "2310"]
[Annotator "ChessBase"]
[PlyCount "38"]
[EventDate "2019.08.19"]
[EventType "swiss"]
[EventCountry "SWE"]
[SourceTitle "playchess.com"]
[Source "ChessBase"]
[SourceQuality "1"]
[TimeControl "2700+10"]

1. e4 {[%emt 0:00:00]} c5 {[%emt 0:00:15]} 2. Nf3 {[%emt 0:00:00]} d6 {[%emt 0:00:29]} 3. d4 {[%emt 0:00:02]} cxd4 {[%emt 0:00:03]} 4. Qxd4 {[%emt 0:00:03]} Bd7 {[%emt 0:01:22]} 5. c4 {[%emt 0:00:34]} Nc6 {[%emt 0:00:03]} 6. Qd2 {[%emt 0:00:31]} g6 {[%emt 0:00:16]} 7. Nc3 {[%emt 0:00:50]} Bh6 {[%emt 0:00:35]} 8. Qc2 {[%emt 0:05:07]} Bg7 {[%emt 0:01:21]} 9. Be2 {[%emt 0:00:53]} Bg4 {[%emt 0:01:13]} 10. O-O {[%emt 0:02:13]} Nf6 {[%emt 0:00:42]} 11. Rd1 {[%emt 0:02:50]} Nd7 {[%emt 0:02:49]} 12. Be3 {[%emt 0:03:02]} O-O {[%emt 0:04:04]} 13. Nd4 {[%emt 0:01:31]} Nxd4 {[%emt 0:01:49]} 14. Bxd4 {[%emt 0:00:03]} Bxe2 {[%emt 0:00:08]} 15. Qxe2 {[%emt 0:00:57]} Rc8 {[%emt 0:02:20]} 16. Nd5 {[%emt 0:03:28]} Rc6 {[%emt 0:04:30]} 17. Nb4 {[%emt 0:01:33]} Rc8 {[%emt 0:00:23]} 18. Nd5 {[%emt 0:00:01]} Rc6 {[%emt 0:00:50]} 19. Nb4 {[%emt 0:00:02]} Rc8 {[%emt 0:00:19]} 1/2-1/2

[Event "Lidkoping Open 2019"]
[Site "Lidkoping"]
[Date "2019.08.25"]
[Round "5.4"]
[White "Bellon Lopez, Juan Manuel"]
[Black "Lind, Jan-Olov"]
[Result "1-0"]
[ECO "E71"]
[WhiteElo "2335"]
[BlackElo "2164"]
[Annotator "ChessBase"]
[PlyCount "95"]
[EventDate "2019.08.19"]
[EventType "swiss"]
[EventCountry "SWE"]
[SourceTitle "playchess.com"]
[Source "ChessBase"]
[SourceQuality "1"]
[TimeControl "2700+10"]

1. d4 {[%emt 0:00:00]} g6 {[%emt 0:00:00]} 2. e4 {[%emt 0:00:08]} Bg7 {[%emt 0:00:06]} 3. c4 {[%emt 0:00:15]} d6 {[%emt 0:00:12]} 4. Nc3 {[%emt 0:00:03]} Nf6 {[%emt 0:00:16]} 5. Bg5 {[%emt 0:00:12]} h6 {[%emt 0:03:15]} 6. Be3 {[%emt 0:00:04]} O-O {[%emt 0:06:31]} 7. h3 {[%emt 0:00:38]} e5 {[%emt 0:05:52]} 8. d5 {[%emt 0:00:21]} a5 {[%emt 0:03:12]} 9. Qd2 {[%emt 0:00:32]} Kh7 {[%emt 0:00:06]} 10. Bd3 {[%emt 0:00:13]} Na6 {[%emt 0:00:36]} 11. Nge2 {[%emt 0:00:13]} Qe8 {[%emt 0:03:20]} 12. g4 {[%emt 0:00:32]} Nc5 {[%emt 0:03:56]} 13. Bc2 {[%emt 0:00:13]} c6 {[%emt 0:01:02]} 14. f3 {[%emt 0:14:54]} cxd5 {[%emt 0:00:55]} 15. cxd5 {[%emt 0:01:56]} b5 {[%emt 0:01:31]} 16. a4 {[%emt 0:03:51]} Nxa4 {[%emt 0:02:44]} 17. Nxb5 {[%emt 0:02:31]} Qxb5 {[%emt 0:00:52]} 18. Bxa4 {[%emt 0:00:02]} Qb4 {[%emt 0:01:15]} 19. Qxb4 {[%emt 0:03:33]} axb4 {[%emt 0:00:03]} 20. Kd2 {[%emt 0:00:13]} Bd7 {[%emt 0:02:07]} 21. Bxd7 {[%emt 0:03:06]} Nxd7 {[%emt 0:00:03]} 22. Rhc1 {[%emt 0:00:13]} Rxa1 {[%emt 0:00:55]} 23. Rxa1 {[%emt 0:00:01]} f5 {[%emt 0:00:57]} 24. Ra7 {[%emt 0:00:34]} Nf6 {[%emt 0:00:12]} 25. Kd3 {[%emt 0:01:47]} fxe4+ {[%emt 0:02:11]} 26. fxe4 {[%emt 0:00:03]} Kg8 {[%emt 0:02:16]} 27. Rb7 {[%emt 0:00:47]} h5 {[%emt 0:01:10]} 28. g5 {[%emt 0:00:57]} Nh7 {[%emt 0:00:01]} 29. Rxb4 {[%emt 0:01:09]} Rf3 {[%emt 0:00:15]} 30. Rb8+ {[%emt 0:00:42]} Bf8 {[%emt 0:00:29]} 31. h4 {[%emt 0:00:43]} Rh3 {[%emt 0:00:03]} 32. b4 {[%emt 0:00:20]} Rxh4 {[%emt 0:00:04]} 33. b5 {[%emt 0:00:01]} Rh1 {[%emt 0:01:06]} 34. Ng1 {[%emt 0:00:53]} Rh2 {[%emt 0:01:15]} 35. Bd2 {[%emt 0:01:44]} Rg2 {[%emt 0:00:10]} 36. Nf3 {[%emt 0:00:32]} Rg3 {[%emt 0:01:03]} 37. Ke2 {[%emt 0:07:14]} Rg4 {[%emt 0:00:20]} 38. Ke3 {[%emt 0:00:00]} Nxg5 {[%emt 0:00:27]} 39. Nxg5 {[%emt 0:00:00]} Rxg5 {[%emt 0:00:02]} 40. Kf3 {[%emt 0:00:00]} Rg1 {[%emt 0:00:15]} 41. Bh6 {[%emt 0:00:00]} h4 {[%emt 0:00:14]} 42. Bxf8 {[%emt 0:00:00]} h3 {[%emt 0:00:24]} 43. Bxd6+ {[%emt 0:00:00]} Kf7 {[%emt 0:00:10]} 44. Bxe5 {[%emt 0:00:00]} g5 {[%emt 0:00:01]} 45. Rh8 {[%emt 0:00:00]} g4+ {[%emt 0:00:02]} 46. Kf2 {[%emt 0:00:00]} Rb1 {[%emt 0:00:21]} 47. Rh4 {[%emt 0:00:00]} Rxb5 {[%emt 0:00:18]} 48. Rxg4 {[%emt 0:00:00]} 1-0

[Event "Lidkoping Open 2019"]
[Site "Lidkoping"]
[Date "2019.08.25"]
[Round "5.5"]
[White "Andersson, Fredrik"]
[Black "Carlstrom, Niklas"]
[Result "1/2-1/2"]
[ECO "C41"]
[WhiteElo "2264"]
[BlackElo "2095"]
[Annotator "ChessBase"]
[PlyCount "57"]
[EventDate "2019.08.19"]
[EventType "swiss"]
[EventCountry "SWE"]
[SourceTitle "playchess.com"]
[Source "ChessBase"]
[SourceQuality "1"]
[TimeControl "2700+10"]

1. e4 {[%emt 0:00:00]} d6 {[%emt 0:00:00]} 2. d4 {[%emt 0:00:05]} Nf6 {[%emt 0:00:07]} 3. Nc3 {[%emt 0:00:03]} e5 {[%emt 0:00:09]} 4. Nf3 {[%emt 0:00:39]} exd4 {[%emt 0:00:13]} 5. Qxd4 {[%emt 0:01:24]} Be7 {[%emt 0:01:31]} 6. Bf4 {[%emt 0:02:36]} O-O {[%emt 0:01:15]} 7. O-O-O {[%emt 0:00:30]} Nc6 {[%emt 0:00:57]} 8. Qd2 {[%emt 0:01:38]} a6 {[%emt 0:04:03]} 9. Bd3 {[%emt 0:00:23]} Nb4 {[%emt 0:03:12]} 10. Nd5 {[%emt 0:02:36]} Nfxd5 {[%emt 0:01:22]} 11. exd5 {[%emt 0:00:02]} Nxd3+ {[%emt 0:00:10]} 12. Qxd3 {[%emt 0:00:03]} Bg4 {[%emt 0:02:08]} 13. h4 {[%emt 0:02:16]} Qd7 {[%emt 0:01:58]} 14. Rde1 {[%emt 0:03:10]} Rfe8 {[%emt 0:01:07]} 15. Ng5 {[%emt 0:05:57]} Bxg5 {[%emt 0:04:05]} 16. Bxg5 {[%emt 0:01:23]} Rxe1+ {[%emt 0:00:18]} 17. Rxe1 {[%emt 0:00:01]} Re8 {[%emt 0:00:16]} 18. Re3 {[%emt 0:04:34]} h6 {[%emt 0:01:46]} 19. Bf4 {[%emt 0:00:08]} Bf5 {[%emt 0:01:59]} 20. Qc4 {[%emt 0:02:10]} Rxe3 {[%emt 0:01:20]} 21. Bxe3 {[%emt 0:00:02]} Qe7 {[%emt 0:04:25]} 22. g3 {[%emt 0:01:10]} Qe4 {[%emt 0:00:58]} 23. Qxe4 {[%emt 0:03:53]} Bxe4 {[%emt 0:00:07]} 24. c4 {[%emt 0:00:04]} b5 {[%emt 0:01:19]} 25. c5 {[%emt 0:06:29]} dxc5 {[%emt 0:00:34]} 26. Bxc5 {[%emt 0:00:05]} Bxd5 {[%emt 0:00:05]} 27. a3 {[%emt 0:00:10]} a5 {[%emt 0:00:22]} 28. Kd2 {[%emt 0:00:19]} h5 {[%emt 0:00:18]} 29. Ke3 {[%emt 0:00:04]} 1/2-1/2

[Event "Lidkoping Open 2019"]
[Site "Lidkoping"]
[Date "2019.08.25"]
[Round "5.6"]
[White "Olsson, Bo"]
[Black "Nygren, Kim"]
[Result "0-1"]
[ECO "A25"]
[WhiteElo "1984"]
[BlackElo "2171"]
[Annotator "ChessBase"]
[PlyCount "66"]
[EventDate "2019.08.19"]
[EventType "swiss"]
[EventCountry "SWE"]
[SourceTitle "playchess.com"]
[Source "ChessBase"]
[SourceQuality "1"]
[TimeControl "2700+10"]

1. Nf3 {[%emt 0:00:00]} d6 {[%emt 0:00:42]} 2. g3 {[%emt 0:00:23]} e5 {[%emt 0:00:22]} 3. Bg2 {[%emt 0:02:44]} f5 {[%emt 0:01:43]} 4. d3 {[%emt 0:05:22]} Nf6 {[%emt 0:00:09]} 5. c4 {[%emt 0:01:16]} Nc6 {[%emt 0:00:31]} 6. O-O {[%emt 0:02:12]} Be7 {[%emt 0:01:59]} 7. Nc3 {[%emt 0:00:11]} O-O {[%emt 0:00:15]} 8. Bg5 {[%emt 0:01:56]} h6 {[%emt 0:00:14]} 9. Bxf6 {[%emt 0:00:08]} Bxf6 {[%emt 0:00:07]} 10. Nd5 {[%emt 0:00:11]} Be6 {[%emt 0:00:06]} 11. Qc2 {[%emt 0:07:56]} g5 {[%emt 0:02:39]} 12. Nxf6+ {[%emt 0:01:55]} Qxf6 {[%emt 0:01:53]} 13. e3 {[%emt 0:00:15]} g4 {[%emt 0:00:11]} 14. Nh4 {[%emt 0:01:25]} f4 {[%emt 0:00:25]} 15. Bxc6 {[%emt 0:04:53]} bxc6 {[%emt 0:00:03]} 16. e4 {[%emt 0:00:18]} Rf7 {[%emt 0:00:16]} 17. Qa4 {[%emt 0:04:19]} Raf8 {[%emt 0:00:23]} 18. Qxa7 {[%emt 0:01:38]} Rg7 {[%emt 0:01:28]} 19. Qb7 {[%emt 0:01:46]} Rg5 {[%emt 0:01:58]} 20. Qxc7 {[%emt 0:01:43]} Rh5 {[%emt 0:00:07]} 21. Nf5 {[%emt 0:02:46]} Bxf5 {[%emt 0:00:21]} 22. exf5 {[%emt 0:00:03]} Rxf5 {[%emt 0:00:05]} 23. Qxc6 {[%emt 0:00:21]} fxg3 {[%emt 0:00:18]} 24. Qg2 {[%emt 0:01:40]} gxf2+ {[%emt 0:00:28]} 25. Kh1 {[%emt 0:01:20]} h5 {[%emt 0:00:01]} 26. a4 {[%emt 0:00:22]} Rg5 {[%emt 0:00:51]} 27. a5 {[%emt 0:00:18]} g3 {[%emt 0:00:44]} 28. h3 {[%emt 0:00:18]} Rg4 {[%emt 0:02:49]} 29. Qd5+ {[%emt 0:01:02]} Kh7 {[%emt 0:00:16]} 30. Kg2 {[%emt 0:00:16]} Rd4 {[%emt 0:00:14]} 31. Qb7+ {[%emt 0:00:41]} Rf7 {[%emt 0:00:02]} 32. Qa8 {[%emt 0:00:16]} d5 {[%emt 0:00:09]} 33. a6 {[%emt 0:00:02]} Qf3# {[%emt 0:00:03]} 0-1

[Event "Lidkoping Open 2019"]
[Site "Lidkoping"]
[Date "2019.08.25"]
[Round "5.7"]
[White "Ronneland, Daniel"]
[Black "Blomstrom, Lars"]
[Result "1-0"]
[ECO "B12"]
[WhiteElo "2137"]
[BlackElo "2132"]
[Annotator "ChessBase"]
[PlyCount "85"]
[EventDate "2019.08.19"]
[EventType "swiss"]
[EventCountry "SWE"]
[SourceTitle "playchess.com"]
[Source "ChessBase"]
[SourceQuality "1"]
[TimeControl "2700+10"]

1. e4 {[%emt 0:00:00]} c6 {[%emt 0:00:38]} 2. d4 {[%emt 0:00:00]} d5 {[%emt 0:00:01]} 3. e5 {[%emt 0:00:24]} c5 {[%emt 0:00:07]} 4. Be3 {[%emt 0:05:20]} Nc6 {[%emt 0:02:53]} 5. Nf3 {[%emt 0:02:49]} Bg4 {[%emt 0:03:59]} 6. dxc5 {[%emt 0:03:50]} e6 {[%emt 0:00:10]} 7. c3 {[%emt 0:01:18]} Nge7 {[%emt 0:03:21]} 8. Nbd2 {[%emt 0:02:45]} Nf5 {[%emt 0:06:33]} 9. Bd4 {[%emt 0:00:51]} Be7 {[%emt 0:06:26]} 10. Bd3 {[%emt 0:01:21]} O-O {[%emt 0:08:55]} 11. h3 {[%emt 0:02:01]} Bxf3 {[%emt 0:00:46]} 12. Nxf3 {[%emt 0:01:05]} b6 {[%emt 0:03:46]} 13. cxb6 {[%emt 0:07:53]} Nfxd4 {[%emt 0:03:06]} 14. cxd4 {[%emt 0:08:25]} Qxb6 {[%emt 0:00:28]} 15. O-O {[%emt 0:00:41]} g6 {[%emt 0:00:40]} 16. Qa4 {[%emt 0:00:43]} f6 {[%emt 0:03:32]} 17. Rac1 {[%emt 0:00:11]} Rac8 {[%emt 0:00:36]} 18. Bb5 {[%emt 0:01:47]} Nb8 {[%emt 0:00:02]} 19. Bd7 {[%emt 0:00:37]} Rxc1 {[%emt 0:00:24]} 20. Rxc1 {[%emt 0:00:05]} fxe5 {[%emt 0:00:43]} 21. Nxe5 {[%emt 0:01:32]} Bf6 {[%emt 0:00:04]} 22. Rc8 {[%emt 0:00:47]} Bxe5 {[%emt 0:00:20]} 23. Rxf8+ {[%emt 0:00:11]} Kxf8 {[%emt 0:00:02]} 24. dxe5 {[%emt 0:00:02]} Nxd7 {[%emt 0:00:34]} 25. Qxd7 {[%emt 0:00:02]} d4 {[%emt 0:00:01]} 26. Qd6+ {[%emt 0:00:43]} Qxd6 {[%emt 0:00:21]} 27. exd6 {[%emt 0:00:02]} Ke8 {[%emt 0:00:02]} 28. f4 {[%emt 0:00:09]} Kd7 {[%emt 0:00:01]} 29. Kf2 {[%emt 0:00:02]} Kxd6 {[%emt 0:01:19]} 30. Ke2 {[%emt 0:00:01]} e5 {[%emt 0:00:00]} 31. fxe5+ {[%emt 0:00:06]} Kxe5 {[%emt 0:00:00]} 32. Kd3 {[%emt 0:00:02]} Kf4 {[%emt 0:00:00]} 33. b4 {[%emt 0:00:25]} Kg3 {[%emt 0:00:00]} 34. a4 {[%emt 0:00:01]} Kxg2 {[%emt 0:00:00]} 35. b5 {[%emt 0:00:02]} Kxh3 {[%emt 0:00:00]} 36. a5 {[%emt 0:00:01]} g5 {[%emt 0:00:02]} 37. b6 {[%emt 0:00:01]} axb6 {[%emt 0:00:04]} 38. axb6 {[%emt 0:00:01]} g4 {[%emt 0:00:08]} 39. b7 {[%emt 0:00:01]} h5 {[%emt 0:00:10]} 40. b8=Q {[%emt 0:00:03]} g3 {[%emt 0:00:22]} 41. Ke2 {[%emt 0:00:57]} d3+ {[%emt 0:00:53]} 42. Kf3 {[%emt 0:00:05]} h4 {[%emt 0:00:01]} 43. Qb2 {[%emt 0:00:15]} 1-0

[Event "Lidkoping Open 2019"]
[Site "Lidkoping"]
[Date "2019.08.25"]
[Round "5.8"]
[White "Kleimark, Anders"]
[Black "Nordlund, Jim"]
[Result "0-1"]
[ECO "A46"]
[WhiteElo "2016"]
[BlackElo "2130"]
[Annotator "ChessBase"]
[PlyCount "110"]
[EventDate "2019.08.19"]
[EventType "swiss"]
[EventCountry "SWE"]
[SourceTitle "playchess.com"]
[Source "ChessBase"]
[SourceQuality "1"]
[TimeControl "2700+10"]

1. d4 {[%emt 0:00:00]} d6 {[%emt 0:00:00]} 2. Nf3 {[%emt 0:00:23]} Nf6 {[%emt 0:00:09]} 3. Bg5 {[%emt 0:01:25]} Nbd7 {[%emt 0:00:58]} 4. e3 {[%emt 0:00:48]} h6 {[%emt 0:03:29]} 5. Bh4 {[%emt 0:00:21]} g5 {[%emt 0:00:48]} 6. Bg3 {[%emt 0:00:03]} Ne4 {[%emt 0:01:02]} 7. Bd3 {[%emt 0:02:04]} Ndf6 {[%emt 0:01:49]} 8. Nbd2 {[%emt 0:01:07]} Bf5 {[%emt 0:00:39]} 9. Nxe4 {[%emt 0:02:16]} Nxe4 {[%emt 0:02:42]} 10. c3 {[%emt 0:04:48]} c6 {[%emt 0:01:38]} 11. Qc2 {[%emt 0:01:10]} d5 {[%emt 0:03:55]} 12. Nd2 {[%emt 0:04:22]} Nxg3 {[%emt 0:05:06]} 13. fxg3 {[%emt 0:02:02]} Be6 {[%emt 0:02:14]} 14. Nb3 {[%emt 0:03:36]} b6 {[%emt 0:00:33]} 15. Ba6 {[%emt 0:02:12]} Qd6 {[%emt 0:01:39]} 16. a4 {[%emt 0:01:09]} Bg7 {[%emt 0:00:42]} 17. O-O {[%emt 0:01:27]} O-O {[%emt 0:00:46]} 18. c4 {[%emt 0:01:32]} dxc4 {[%emt 0:02:48]} 19. Bxc4 {[%emt 0:00:38]} Rac8 {[%emt 0:00:42]} 20. a5 {[%emt 0:01:04]} Rc7 {[%emt 0:02:13]} 21. axb6 {[%emt 0:00:24]} axb6 {[%emt 0:00:02]} 22. Ra6 {[%emt 0:00:58]} Rb8 {[%emt 0:00:37]} 23. Rfa1 {[%emt 0:02:45]} Bxc4 {[%emt 0:03:44]} 24. Qxc4 {[%emt 0:00:03]} Qd5 {[%emt 0:00:02]} 25. Qxd5 {[%emt 0:03:08]} cxd5 {[%emt 0:00:04]} 26. Ra7 {[%emt 0:00:02]} Rbc8 {[%emt 0:01:17]} 27. Rxc7 {[%emt 0:01:07]} Rxc7 {[%emt 0:00:02]} 28. Ra8+ {[%emt 0:00:08]} Kh7 {[%emt 0:00:02]} 29. Rd8 {[%emt 0:02:19]} e6 {[%emt 0:00:20]} 30. Rd6 {[%emt 0:00:10]} Rc2 {[%emt 0:00:02]} 31. Rxb6 {[%emt 0:00:26]} Rxb2 {[%emt 0:00:02]} 32. Rb7 {[%emt 0:00:38]} Kg6 {[%emt 0:00:03]} 33. Nc5 {[%emt 0:00:10]} Re2 {[%emt 0:00:15]} 34. Rb3 {[%emt 0:00:10]} Rxe3 {[%emt 0:00:40]} 35. Rxe3 {[%emt 0:00:14]} Bxd4 {[%emt 0:00:01]} 36. Kf1 {[%emt 0:01:58]} Bxe3 {[%emt 0:00:13]} 37. Nd3 {[%emt 0:00:06]} Bd4 {[%emt 0:00:33]} 38. Ke2 {[%emt 0:00:02]} h5 {[%emt 0:00:25]} 39. h3 {[%emt 0:00:18]} Kf5 {[%emt 0:00:38]} 40. Nb4 {[%emt 0:00:16]} Bc5 {[%emt 0:00:21]} 41. Nd3 {[%emt 0:00:07]} Bd6 {[%emt 0:00:04]} 42. Kf3 {[%emt 0:00:08]} e5 {[%emt 0:00:27]} 43. g4+ {[%emt 0:00:09]} hxg4+ {[%emt 0:00:02]} 44. hxg4+ {[%emt 0:00:01]} Ke6 {[%emt 0:00:01]} 45. Nf2 {[%emt 0:00:16]} e4+ {[%emt 0:00:12]} 46. Ke2 {[%emt 0:00:02]} Bf4 {[%emt 0:00:11]} 47. Nh3 {[%emt 0:00:24]} f6 {[%emt 0:00:06]} 48. Nf2 {[%emt 0:00:08]} Ke5 {[%emt 0:00:15]} 49. Nd1 {[%emt 0:00:11]} d4 {[%emt 0:00:07]} 50. Nb2 {[%emt 0:00:19]} d3+ {[%emt 0:00:18]} 51. Kf2 {[%emt 0:00:14]} Kd4 {[%emt 0:00:08]} 52. Na4 {[%emt 0:00:42]} e3+ {[%emt 0:00:12]} 53. Kf3 {[%emt 0:01:36]} e2 {[%emt 0:00:19]} 54. Kf2 {[%emt 0:00:25]} Bg3+ {[%emt 0:00:10]} 55. Kxg3 {[%emt 0:00:20]} e1=Q+ {[%emt 0:00:06]} 0-1

[Event "Lidkoping Open 2019"]
[Site "Lidkoping"]
[Date "2019.08.25"]
[Round "5.9"]
[White "Friberg, Hans"]
[Black "Strom-Engdahl, Alexander"]
[Result "1/2-1/2"]
[ECO "D51"]
[WhiteElo "2129"]
[BlackElo "1858"]
[Annotator "ChessBase"]
[PlyCount "47"]
[EventDate "2019.08.19"]
[EventType "swiss"]
[EventCountry "SWE"]
[SourceTitle "playchess.com"]
[Source "ChessBase"]
[SourceQuality "1"]
[TimeControl "2700+10"]

1. Nf3 {[%emt 0:00:00]} Nf6 {[%emt 0:00:30]} 2. c4 {[%emt 0:00:00]} e6 {[%emt 0:00:20]} 3. Nc3 {[%emt 0:02:18]} d5 {[%emt 0:00:11]} 4. d4 {[%emt 0:00:07]} Bb4 {[%emt 0:00:07]} 5. Qb3 {[%emt 0:03:14]} Bxc3+ {[%emt 0:02:35]} 6. bxc3 {[%emt 0:01:12]} O-O {[%emt 0:01:54]} 7. cxd5 {[%emt 0:03:21]} exd5 {[%emt 0:00:17]} 8. Bg5 {[%emt 0:00:19]} c6 {[%emt 0:00:52]} 9. e3 {[%emt 0:00:09]} Nbd7 {[%emt 0:03:18]} 10. Ne5 {[%emt 0:06:07]} Qb6 {[%emt 0:01:25]} 11. Qxb6 {[%emt 0:01:02]} axb6 {[%emt 0:00:09]} 12. Nxd7 {[%emt 0:00:49]} Bxd7 {[%emt 0:00:38]} 13. Bxf6 {[%emt 0:01:30]} gxf6 {[%emt 0:00:50]} 14. c4 {[%emt 0:01:23]} dxc4 {[%emt 0:00:35]} 15. Bxc4 {[%emt 0:00:07]} Be6 {[%emt 0:00:19]} 16. Bxe6 {[%emt 0:00:17]} fxe6 {[%emt 0:00:09]} 17. Kd2 {[%emt 0:02:55]} Ra5 {[%emt 0:01:30]} 18. Rhb1 {[%emt 0:02:31]} b5 {[%emt 0:00:30]} 19. a3 {[%emt 0:03:32]} Rfa8 {[%emt 0:00:35]} 20. Rb3 {[%emt 0:00:09]} Kf7 {[%emt 0:00:21]} 21. Kc2 {[%emt 0:00:41]} Ke7 {[%emt 0:00:21]} 22. Kb2 {[%emt 0:00:17]} Kd6 {[%emt 0:00:06]} 23. Rc1 {[%emt 0:00:18]} b4 24. Rxb4 {[%emt 0:16:42] Ke5 Rb3+} 1/2-1/2

[Event "Lidkoping Open 2019"]
[Site "Lidkoping"]
[Date "2019.08.25"]
[Round "5.11"]
[White "Mardell, Jonas"]
[Black "Bermann, Martin"]
[Result "1-0"]
[ECO "C01"]
[WhiteElo "2059"]
[BlackElo "1889"]
[Annotator "NA"]
[PlyCount "111"]
[EventDate "2019.08.19"]
[EventType "swiss"]
[EventCountry "SWE"]
[SourceTitle "playchess.com"]
[Source "ChessBase"]
[SourceQuality "1"]
[TimeControl "2700+10"]

1. e4 {[%emt 0:00:00]} e6 {[%emt 0:06:47]} 2. d4 {[%emt 0:00:00]} d5 {[%emt 0:00:20]} 3. exd5 {[%emt 0:00:00]} exd5 {[%emt 0:00:08]} 4. Bd3 {[%emt 0:00:00]} Bd6 {[%emt 0:00:15]} 5. Qf3 {[%emt 0:00:08]} Ne7 {[%emt 0:02:21]} 6. Ne2 {[%emt 0:00:06]} Nbc6 {[%emt 0:02:52]} 7. c3 {[%emt 0:00:02]} Be6 {[%emt 0:00:54]} 8. Bf4 {[%emt 0:00:27]} Ng6 {[%emt 0:01:30]} 9. Bxd6 {[%emt 0:01:57]} Qxd6 {[%emt 0:00:10]} 10. h4 {[%emt 0:00:40]} O-O-O {[%emt 0:02:53]} 11. h5 {[%emt 0:00:32]} Nge7 {[%emt 0:00:13]} 12. h6 {[%emt 0:02:18]} g6 {[%emt 0:00:16]} 13. Nd2 {[%emt 0:00:41]} Qd7 {[%emt 0:01:08]} 14. O-O-O {[%emt 0:04:09]} Bf5 {[%emt 0:00:29]} 15. Rde1 {[%emt 0:04:22]} Bxd3 {[%emt 0:04:16]} 16. Qxd3 {[%emt 0:00:03]} Rhe8 {[%emt 0:01:27]} 17. Qh3 {[%emt 0:12:09]} Nb8 {[%emt 0:02:27]} 18. Nf3 {[%emt 0:01:05]} Qxh3 {[%emt 0:02:54]} 19. Rxh3 {[%emt 0:00:01]} f6 {[%emt 0:02:55]} 20. Nf4 {[%emt 0:06:18]} g5 {[%emt 0:02:00]} 21. Ne6 {[%emt 0:01:02]} g4 {[%emt 0:01:29]} 22. Nxd8 {[%emt 0:00:03]} gxh3 {[%emt 0:00:08]} 23. Ne6 {[%emt 0:01:18]} Nf5 {[%emt 0:01:08]} 24. gxh3 {[%emt 0:01:12]} Nxh6 {[%emt 0:00:11]} 25. Kd2 {[%emt 0:02:35]} b6 {[%emt 0:00:35]} 26. Nf4 {[%emt 0:00:26]} Rxe1 {[%emt 0:00:10]} 27. Nxe1 {[%emt 0:00:02]} c6 {[%emt 0:00:10]} 28. Nh5 {[%emt 0:00:19]} Nd7 {[%emt 0:00:04]} 29. Ke3 {[%emt 0:01:09]} Kc7 {[%emt 0:00:12]} 30. Kf4 {[%emt 0:00:42]} Kd6 {[%emt 0:00:09]} 31. Ng2 {[%emt 0:00:13]} Ke6 {[%emt 0:00:15]} 32. Ne3 {[%emt 0:00:40]} Nf8 {[%emt 0:00:15]} 33. Ng4 {[%emt 0:02:24]} Ng6+ {[%emt 0:00:11]} 34. Kf3 {[%emt 0:00:10]} Nxg4 {[%emt 0:00:08]} 35. Kxg4 {[%emt 0:00:55]} Ne7 {[%emt 0:00:49]} 36. Nf4+ {[%emt 0:01:43]} Kf7 {[%emt 0:00:05]} 37. Kh5 {[%emt 0:00:44]} Ng6 {[%emt 0:00:11]} 38. Nxg6 {[%emt 0:00:24]} hxg6+ {[%emt 0:00:02]} 39. Kh6 {[%emt 0:00:01]} g5 {[%emt 0:00:13]} 40. a4 {[%emt 0:00:12]} a6 {[%emt 0:01:01]} 41. b4 {[%emt 0:00:08]} a5 {[%emt 0:00:33]} 42. bxa5 {[%emt 0:00:04]} bxa5 {[%emt 0:00:02]} 43. f3 {[%emt 0:00:04]} Ke6 {[%emt 0:00:44]} 44. Kg6 {[%emt 0:00:03]} Ke7 {[%emt 0:00:04]} 45. Kf5 {[%emt 0:00:02]} Kf7 {[%emt 0:00:04]} 46. f4 {[%emt 0:00:06]} gxf4 {[%emt 0:00:21]} 47. Kxf4 {[%emt 0:00:02]} Kg6 {[%emt 0:00:01]} 48. Kg4 {[%emt 0:00:14]} f5+ {[%emt 0:00:08]} 49. Kf4 {[%emt 0:01:15]} Kf6 50. h4 Kg6 51. h5+ {[%emt 0:00:00]} Kxh5 {[%emt 0:00:01]} 52. Kxf5 {[%emt 0:00:00]} Kh6 {[%emt 0:00:00]} 53. Ke6 {[%emt 0:00:40]} Kg6 {[%emt 0:08:11]} 54. Kd6 Kf6 55. Kxc6 {[%emt 0:00:00]} Ke6 {[%emt 0:00:00]} 56. Kc5 {[%emt 0:00:30]} 1-0